bitfinex-derivatives/quotes_SOLF0:USTF0_20260202
["timestamp","ask_amount","ask_price","bid_price","bid_amount"]
[1770052758308,8.5633,105.18,105.13,3.55155914]
[1770052760810,8.5624,105.19,105.14,3.56685393]
[1770052761716,12.89679925,105.19,105.12,394.14851103]
[1770052762014,8.5632,105.18,105.12,394.14851103]
[1770052762214,8.5632,105.18,105.13,3.56685393]
[1770052765117,2.8936571,105.21,105.15,3.56685393]
[1770052765317,4.33039882,105.22,105.15,6.46051103]
[1770052765913,133.1428,105.23,105.17,3.56685393]
[1770052765914,2.8936571,105.23,105.17,3.56685393]
[1770052766113,4.33039882,105.26,105.19,6.46051103]
[1770052766415,1.43674172,105.3,105.22,3.56685393]
[1770052766620,1.43674172,105.3,105.23,3.56685393]
[1770052767422,8.5545,105.29,105.23,3.56685393]
[1770052768819,8.5545,105.29,105.24,3.56685393]
[1770052769921,8.555,105.28,105.22,379.18]
[1770052770118,8.555,105.28,105.22,382.74685393]
[1770052771720,1.50737419,105.27,105.22,379.18]
[1770052771920,1.50737419,105.31,105.22,389.96722538]
[1770052772717,8.5543,105.29,105.22,389.96722538]
[1770052772921,8.5543,105.29,105.22,382.74685393]
[1770052773631,8.5543,105.29,105.23,3.56685393]
[1770052773830,8.555,105.28,105.23,3.56685393]
[1770052774126,1.50402092,105.3,105.23,3.56685393]
[1770052775328,8.5542,105.29,105.23,3.56685393]
[1770052775732,1.50397484,105.29,105.23,3.56685393]
[1770052776031,8.555,105.28,105.23,3.56685393]
[1770052777122,10.05897484,105.28,105.22,379.18]
[1770052777324,8.5558,105.27,105.22,379.18]
[1770052777826,8.5558,105.27,105.22,382.74685393]
[1770052778026,10.05897484,105.28,105.22,382.74685393]
[1770052778333,1.50397484,105.28,105.22,382.74685393]
[1770052779330,8.5559,105.27,105.22,382.74685393]
[1770052779930,8.5559,105.27,105.22,3.56685393]
[1770052780731,134.55848546,105.3,105.22,3.56685393]
[1770052781231,1.49958546,105.29,105.22,3.56685393]
[1770052781726,8.5552,105.28,105.23,3.56685393]
[1770052783830,8.556,105.27,105.23,3.56685393]
[1770052784833,1.49898195,105.28,105.23,3.56685393]
[1770052784834,8.555,105.28,105.23,3.56685393]
[1770052785829,8.5558,105.27,105.23,3.56685393]
[1770052786026,8.5558,105.27,105.21,3.56685393]
[1770052786330,1.58094972,105.35,105.25,3.56685393]
[1770052786536,1.58094972,105.35,105.27,3.56685393]
[1770052787230,1.4963196,105.33,105.27,3.56685393]
[1770052787729,1.4963196,105.35,105.27,3.56685393]
[1770052788232,8.5509,105.34,105.27,12.12255393]
[1770052789235,8.5509,105.34,105.28,3.58370521]
[1770052790333,10.0456196,105.35,105.29,3.41411385]
[1770052790533,132.9363,105.4,105.29,3.41411385]
[1770052790534,132.9491,105.39,105.29,3.41411385]
[1770052790733,1.57886668,105.39,105.31,3.41411385]
[1770052791237,10.12506668,105.39,105.32,3.41411385]
[1770052791432,1.57886668,105.39,105.32,3.41411385]
[1770052791637,1.58856573,105.41,105.32,3.41411385]
[1770052791835,1.58856573,105.39,105.33,3.41411385]
[1770052792339,10.13576573,105.38,105.32,378.86]
[1770052792638,10.13576573,105.38,105.32,382.27411385]
[1770052792838,10.13576573,105.38,105.32,3.41411385]
[1770052793239,1.62981705,105.37,105.3,382.25411385]
[1770052793937,1.62981705,105.37,105.31,3.41411385]
[1770052794333,149.9813,105.43,105.33,3.41411385]
[1770052794334,134.52521705,105.43,105.33,3.41411385]
[1770052794541,1.62981705,105.42,105.33,3.41411385]
[1770052794744,1.68970047,105.44,105.37,3.41411385]
[1770052795039,1.68970047,105.44,105.36,378.78]
[1770052795040,1.68970047,105.43,105.36,378.78]
[1770052795431,134.52938018,105.45,105.37,3.41411385]
[1770052795829,1.66128018,105.44,105.37,3.41411385]
[1770052796029,10.20438018,105.43,105.37,3.41411385]
[1770052796835,8.5439,105.42,105.36,378.78]
[1770052797035,1.66128018,105.43,105.36,382.19411385]
[1770052797338,10.20438018,105.43,105.36,3.41411385]
[1770052797533,10.20438018,105.43,105.33,133.0128]
[1770052797534,1.64162459,105.42,105.33,3.41411385]
[1770052797939,1.64162459,105.41,105.33,3.41411385]
[1770052798138,1.64162459,105.41,105.34,3.41411385]
[1770052798838,1.64162459,105.4,105.34,3.41411385]
[1770052799440,1.63389324,105.39,105.32,378.74]
[1770052799634,1.63389324,105.39,105.32,382.15411385]
[1770052799839,1.63389324,105.39,105.36,0.06052298]
[1770052800436,134.52569324,105.43,105.36,3.47463683]
[1770052800637,10.17729324,105.43,105.36,3.47463683]
[1770052801037,1.63389324,105.46,105.38,3.41411385]
[1770052801237,1.64682907,105.51,105.42,3.41411385]
[1770052801435,1.64682907,105.53,105.44,3.41411385]
[1770052801636,1.64682907,105.53,105.45,3.41411385]
[1770052802041,1.64682907,105.53,105.45,11.95511385]
[1770052802641,1.64682907,105.51,105.44,378.62]
[1770052802846,1.64682907,105.5,105.44,378.62]
[1770052803140,10.18442907,105.5,105.44,378.62]
[1770052803346,1.64682907,105.5,105.44,378.62]
[1770052803540,1.55234501,105.49,105.42,3.41411385]
[1770052803849,1.55234501,105.49,105.4,385.78103885]
[1770052803850,1.55234501,105.48,105.41,3.41411385]
[1770052804438,142.91854501,105.48,105.41,3.41411385]
[1770052804845,1.55234501,105.45,105.39,378.52]
[1770052805041,134.42944501,105.44,105.35,381.93411385]
[1770052805345,1.60512364,105.42,105.35,378.52]
[1770052805543,1.60512364,105.41,105.35,378.52]
[1770052805746,8.5443,105.42,105.35,381.93411385]
[1770052805948,8.82616249,105.43,105.35,381.93411385]
[1770052806248,1.60512364,105.42,105.35,381.93411385]
[1770052807051,134.47002364,105.45,105.36,3.41411385]
[1770052807248,1.6118375,105.43,105.36,3.41411385]
[1770052807644,1.6118375,105.43,105.35,378.52]
[1770052807645,134.5022375,105.43,105.35,378.52]
[1770052807849,1.6118375,105.41,105.35,378.52]
[1770052808752,10.1565375,105.41,105.35,378.52]
[1770052809050,8.83287635,105.44,105.36,3.41411385]
[1770052809252,141.71017635,105.44,105.36,3.41411385]
[1770052809452,8.5431,105.43,105.36,3.41411385]
[1770052809940,8.83287635,105.44,105.36,11.96241385]
[1770052809941,1.6118375,105.44,105.36,11.96241385]
[1770052810141,141.71077635,105.44,105.36,3.41411385]
[1770052810748,8.5438,105.42,105.36,3.41411385]
[1770052811550,141.70939111,105.4,105.31,3.41411385]
[1770052811750,8.78129111,105.4,105.31,3.41411385]
[1770052812349,8.5464,105.39,105.31,3.41411385]
[1770052813149,1.51753317,105.38,105.31,3.41411385]
[1770052813754,10.06563317,105.37,105.29,3.41411385]
[1770052814052,1.51753317,105.37,105.29,3.41411385]
[1770052815350,8.5486,105.36,105.29,3.41411385]
[1770052816646,1.51423416,105.38,105.3,3.41411385]
[1770052817452,1.1437873,105.36,105.28,3.41411385]
[1770052817757,9.6941873,105.34,105.27,374.3]
[1770052817947,134.1491873,105.34,105.27,374.3]
[1770052818145,134.1337873,105.35,105.27,377.71411385]
[1770052818348,140.20333885,105.36,105.29,3.41411385]
[1770052818349,8.5491,105.36,105.29,3.41411385]
[1770052818557,1.1437873,105.38,105.3,3.41411385]
[1770052819048,8.5478,105.37,105.3,3.41411385]
[1770052819252,134.0976873,105.38,105.3,3.41411385]
[1770052819454,1.1437873,105.38,105.3,3.41411385]
[1770052819650,8.5485,105.36,105.3,3.41411385]
[1770052820555,141.31872615,105.38,105.29,8.5542]
[1770052820556,9.6912873,105.38,105.31,3.7126089]
[1770052821552,8.5461,105.39,105.32,3.7126089]
[1770052822055,8.5454,105.4,105.33,12.2629089]
[1770052822453,1.20441316,105.41,105.34,3.7126089]
[1770052822754,140.10413885,105.44,105.35,3.7126089]
[1770052822755,1.20441316,105.44,105.35,3.7126089]
[1770052823355,1.21934304,105.47,105.38,3.7126089]
[1770052823555,134.05914304,105.47,105.39,3.7126089]
[1770052823856,1.21934304,105.46,105.38,378.56]
[1770052825056,1.21934304,105.46,105.39,3.7126089]
[1770052825256,9.76054304,105.46,105.39,3.7126089]
[1770052825556,1.21934304,105.46,105.39,3.7126089]
[1770052825956,8.5404,105.46,105.39,12.2585089]
[1770052826156,1.24624593,105.46,105.39,3.7126089]
[1770052826756,8.5414,105.45,105.39,12.2585089]
[1770052826957,1.24624593,105.46,105.39,12.2585089]
[1770052827154,390.24938478,105.49,105.4,3.7126089]
[1770052827459,141.28938478,105.49,105.4,3.7126089]
[1770052827757,8.5396,105.47,105.4,3.7126089]
[1770052827958,141.28938478,105.49,105.41,3.7126089]
[1770052827959,1.24624593,105.49,105.41,3.7126089]
[1770052828156,1.24931488,105.47,105.4,17.37183176]
[1770052828454,1.24931488,105.45,105.38,3.7126089]
[1770052829352,9.79061488,105.45,105.38,29.63114066]
[1770052831057,1.25220565,105.44,105.36,321.89234066]
[1770052831556,132.8553,105.46,105.38,3.7126089]
[1770052831753,1.2146214,105.46,105.38,21.08444066]
[1770052831954,1.2146214,105.46,105.39,17.37183176]
[1770052833160,1.2146214,105.46,105.39,21.08444066]
[1770052833363,8.5413,105.45,105.39,3.7126089]
[1770052834959,8.5421,105.44,105.39,3.7126089]
[1770052835358,1.2146214,105.46,105.39,3.7126089]
[1770052836463,8.5412,105.45,105.39,3.7126089]
[1770052836764,1.2146214,105.46,105.39,3.7126089]
[1770052837462,8.5412,105.45,105.39,3.7126089]
[1770052837663,0.80144977,105.44,105.37,21.08444066]
[1770052837865,0.80144977,105.44,105.37,3.7126089]
[1770052838070,0.80144977,105.44,105.38,3.7126089]
[1770052838364,8.542,105.45,105.39,3.7126089]
[1770052838960,8.5421,105.44,105.39,3.7126089]
[1770052840661,8.5429,105.43,105.37,21.08444066]
[1770052840865,8.5429,105.43,105.38,3.7126089]
[1770052841062,0.79377517,105.45,105.38,3.7126089]
[1770052841463,0.79377517,105.45,105.38,21.08444066]
[1770052841658,0.93786548,105.47,105.39,3.7126089]
[1770052842565,0.93786548,105.47,105.39,21.08444066]
[1770052843363,1.14052983,105.49,105.4,3.7126089]
[1770052843665,1.14052983,105.51,105.42,3.7126089]
[1770052843973,8.5373,105.5,105.44,12.2539089]
[1770052844566,8.5373,105.5,105.45,3.7126089]
[1770052845163,133.95596359,105.52,105.45,3.7126089]
[1770052845365,133.96386359,105.51,105.43,3.7126089]
[1770052846468,8.5381,105.49,105.43,12.2550089]
[1770052846669,133.98106359,105.5,105.43,3.7126089]
[1770052846869,133.98106359,105.5,105.42,378.36]
[1770052846870,8.5396,105.47,105.42,378.36]
[1770052847069,1.17436359,105.47,105.41,3.7126089]
[1770052847869,8.5412,105.45,105.38,29.63054066]
[1770052848068,1.18319927,105.45,105.38,3.7126089]
[1770052848476,9.72509927,105.45,105.38,12.2593089]
[1770052848871,1.18319927,105.45,105.38,12.2593089]
[1770052849074,8.5422,105.44,105.38,3.7126089]
[1770052849273,133.98282113,105.47,105.38,3.7126089]
[1770052850380,8.5412,105.45,105.39,12.20104431]
[1770052853375,9.68332113,105.47,105.41,3.65504431]
[1770052853879,8.5402,105.47,105.41,3.65504431]
[1770052854580,8.5402,105.47,105.41,12.19934431]
[1770052855373,8.5402,105.47,105.42,3.65504431]
[1770052857478,8.5405,105.46,105.4,12.20014431]
[1770052858585,8.5412,105.45,105.4,3.65504431]
[1770052858982,1.08432944,105.47,105.4,3.65504431]
[1770052859482,8.5405,105.46,105.4,3.65504431]
[1770052860482,8.5396,105.48,105.41,3.65504431]
[1770052860682,141.15281294,105.51,105.41,3.65504431]
[1770052860987,133.96057697,105.51,105.41,3.65504431]
[1770052861383,9.69987697,105.51,105.44,12.19694431]
[1770052861586,1.16551631,105.54,105.45,3.65504431]
[1770052863085,8.5356,105.52,105.46,12.19534431]
[1770052863684,133.91701631,105.54,105.45,8.5412]
[1770052863685,9.64226777,105.51,105.45,8.5412]
[1770052864185,8.539,105.48,105.42,12.19864431]
[1770052864688,8.539,105.48,105.42,3.65504431]
[1770052865287,8.5399,105.47,105.42,3.65504431]
[1770052865483,133.94048075,105.47,105.4,381.89504431]
[1770052865682,141.11231672,105.49,105.41,3.65504431]
[1770052865878,1.09868075,105.49,105.43,3.65504431]
[1770052866082,387.54143597,105.51,105.43,3.65504431]
[1770052866083,141.08011672,105.51,105.43,3.65504431]
[1770052866279,8.5388,105.48,105.43,3.65504431]
[1770052866486,133.91508075,105.49,105.41,3.65504431]
[1770052866883,8.5397,105.47,105.41,3.65504431]
[1770052867187,8.5397,105.47,105.42,3.65504431]
[1770052868086,8.5405,105.46,105.4,378.24]
[1770052868291,133.94736079,105.47,105.4,378.24]
[1770052869290,8.5414,105.45,105.4,381.89504431]
[1770052871992,1.10746079,105.47,105.4,381.89504431]
[1770052872197,8.5404,105.47,105.41,3.65504431]
[1770052872397,1.09593675,105.48,105.41,3.65504431]
[1770052872692,8.5406,105.46,105.41,3.65504431]
[1770052872886,1.09593675,105.48,105.42,3.65504431]
[1770052873290,8.5405,105.46,105.42,3.65504431]
[1770052873489,8.5405,105.46,105.4,386.7846]
[1770052873689,8.5405,105.46,105.4,390.43964431]
[1770052873890,133.94958907,105.46,105.39,23.44143576]
[1770052874096,1.09638907,105.46,105.38,3.65504431]
[1770052874395,1.09638907,105.46,105.38,27.09648007]
[1770052874586,8.5405,105.46,105.41,3.65504431]
[1770052876595,8.5414,105.45,105.39,27.09648007]
[1770052876899,1.11136507,105.46,105.39,3.65504431]
[1770052878006,388.87309571,105.49,105.4,3.65504431]
[1770052878298,134.13225974,105.48,105.4,3.65504431]
[1770052879296,8.5412,105.46,105.4,12.19954431]
[1770052879699,134.13225974,105.48,105.4,3.65504431]
[1770052879895,1.38787748,105.45,105.39,3.72176817]
[1770052880693,8.5427,105.44,105.38,31.98813576]
[1770052880997,1.38787748,105.45,105.37,405.42320393]
[1770052881198,1.38787748,105.45,105.38,3.72176817]
[1770052882398,8.5422,105.44,105.38,12.26856817]
[1770052883098,8.5414,105.45,105.4,3.72176817]
[1770052883305,8.5414,105.45,105.4,27.16320393]
[1770052883502,8.5423,105.44,105.4,3.72176817]
[1770052884694,8.5414,105.45,105.4,27.16320393]
[1770052884896,1.43009925,105.46,105.4,3.72176817]
[1770052885099,8.5427,105.44,105.4,3.72176817]
[1770052885295,134.28259925,105.46,105.4,3.72176817]
[1770052885509,1.4252384,105.44,105.38,27.16320393]
[1770052886400,8.5435,105.43,105.38,27.16320393]
[1770052886600,2.87988127,105.42,105.38,23.44143576]
[1770052886801,2.87988127,105.41,105.36,3.72176817]
[1770052887205,11.42448127,105.41,105.36,3.72176817]
[1770052887906,8.5446,105.41,105.36,3.72176817]
[1770052888904,8.5436,105.42,105.36,3.72176817]
[1770052890608,1.40215935,105.44,105.37,3.72176817]
[1770052890806,1.40215935,105.45,105.37,3.72176817]
[1770052891212,8.5436,105.42,105.37,3.72176817]
[1770052891610,1.42410212,105.43,105.37,3.72176817]
[1770052893411,9.96690212,105.43,105.37,3.72176817]
[1770052893609,1.43138029,105.42,105.36,386.8684]
[1770052894114,1.43138029,105.42,105.36,390.59016817]
[1770052894812,8.5437,105.42,105.37,3.72176817]
[1770052899113,134.30938029,105.44,105.37,3.72176817]
[1770052899114,8.5445,105.41,105.37,3.72176817]
[1770052900306,8.5454,105.4,105.34,27.27546935]
[1770052900505,8.5454,105.4,105.35,3.72176817]
[1770052901112,8.5464,105.39,105.35,3.72176817]
[1770052901313,1.30079197,105.41,105.35,3.72176817]
[1770052901513,8.5454,105.4,105.35,3.72176817]
[1770052901905,1.29463114,105.4,105.34,3.72176817]
[1770052903413,8.5462,105.39,105.34,3.72176817]
[1770052903906,8.5453,105.4,105.35,3.72176817]
[1770052904111,9.82325486,105.4,105.34,8.5496]
[1770052904414,1.27795486,105.4,105.33,382.10176817]
[1770052905116,1.27795486,105.4,105.34,3.72176817]
[1770052905415,8.5461,105.39,105.34,3.72176817]
[1770052910319,8.5469,105.38,105.33,381.95774036]
[1770052910614,8.5469,105.38,105.34,3.57774036]
[1770052910818,9.81477577,105.39,105.34,3.57774036]
[1770052913416,8.5453,105.4,105.35,3.57774036]
[1770052914313,9.78848468,105.4,105.35,3.57774036]
[1770052915022,11.42680987,105.41,105.35,3.57774036]
[1770052915213,9.78768468,105.41,105.35,3.57774036]
[1770052915412,9.78768468,105.41,105.35,12.12694036]
[1770052915922,12.64418007,105.4,105.35,3.57774036]
[1770052916122,4.09858007,105.39,105.33,381.95774036]
[1770052916422,4.09858007,105.39,105.33,3.57774036]
[1770052916816,9.7639702,105.37,105.32,402.01370118]
[1770052917024,9.7639702,105.37,105.32,382.03774036]
[1770052917220,8.5477,105.37,105.32,382.03774036]
[1770052917420,11.43000987,105.37,105.32,382.03774036]
[1770052917818,8.5487,105.36,105.32,3.57774036]
[1770052918919,1.19849363,105.34,105.3,378.46]
[1770052919119,132.979,105.36,105.28,23.55370118]
[1770052919120,4.0808035,105.33,105.28,23.55370118]
[1770052919314,1.19849363,105.33,105.28,3.57774036]
[1770052919518,4.07029256,105.35,105.29,3.57774036]
[1770052919721,2.88230987,105.34,105.29,3.57774036]
[1770052920120,2.88230987,105.35,105.3,3.57774036]
[1770052920322,4.07029256,105.37,105.31,3.57774036]
[1770052920516,4.07029256,105.36,105.3,23.55370118]
[1770052920720,12.61969256,105.35,105.29,382.07774036]
[1770052920919,2.88230987,105.34,105.29,382.07774036]
[1770052921219,2.88230987,105.33,105.29,3.57774036]
[1770052921420,2.88230987,105.35,105.29,3.57774036]
[1770052921621,4.0399493,105.36,105.3,3.57774036]
[1770052921921,4.0399493,105.35,105.29,402.07370118]
[1770052922121,2.88230987,105.34,105.29,382.09774036]
[1770052922317,2.88230987,105.33,105.29,378.52]
[1770052922519,1.15763943,105.34,105.28,3.57774036]
[1770052922819,2.88230987,105.35,105.3,3.57774036]
[1770052923023,4.0399493,105.36,105.3,3.57774036]
[1770052923323,246.24,105.39,105.32,3.57774036]
[1770052923324,8.5484,105.37,105.32,3.57774036]
[1770052923526,4.0042586,105.39,105.33,27.13144154]
[1770052923722,1.12194873,105.39,105.34,27.13144154]
[1770052923916,4.0042586,105.37,105.33,9.12950118]
[1770052924116,4.0042586,105.37,105.31,382.11774036]
[1770052924317,12.5520586,105.37,105.31,382.11774036]
[1770052924523,2.88230987,105.36,105.31,382.11774036]
[1770052924719,2.88230987,105.34,105.29,32.84346984]
[1770052924923,11.43240987,105.34,105.29,3.57774036]
[1770052925524,11.43160987,105.36,105.3,3.57774036]
[1770052925724,8.5493,105.36,105.3,3.57774036]
[1770052926925,11.43160987,105.36,105.3,3.57774036]
[1770052927227,8.5494,105.35,105.3,3.57774036]
[1770052927721,2.88230987,105.36,105.3,3.57774036]
[1770052927922,4.05158207,105.37,105.3,3.57774036]
[1770052928220,8.5494,105.35,105.3,3.57774036]
[1770052928425,11.43170987,105.35,105.3,3.57774036]
[1770052929727,132.9531,105.38,105.31,3.57774036]
[1770052929728,4.01336625,105.38,105.31,3.57774036]
[1770052930127,4.01336625,105.37,105.31,3.57774036]
[1770052930627,12.56106625,105.37,105.31,3.57774036]
[1770052931622,8.547,105.38,105.32,6.46005023]
[1770052931820,4.00796409,105.39,105.33,6.46005023]
[1770052931821,1.12565422,105.39,105.33,6.46005023]
[1770052932021,1.12565422,105.41,105.35,3.57774036]
[1770052932230,4.00796409,105.43,105.36,6.46005023]
[1770052932429,4.00796409,105.43,105.36,3.57774036]
[1770052932727,4.00796409,105.42,105.35,3.57774036]
[1770052932927,1.12565422,105.39,105.33,6.46005023]
[1770052933226,4.00796409,105.39,105.33,3.57774036]
[1770052933927,4.00796409,105.39,105.33,27.13125596]
[1770052934229,1.12565422,105.39,105.33,27.13125596]
[1770052934528,8.5469,105.38,105.33,3.57774036]
[1770052935126,9.67185422,105.39,105.33,15.01095023]
[1770052935327,12.55416409,105.39,105.33,3.57774036]
[1770052935723,0.85533342,105.38,105.32,23.5535156]
[1770052935929,3.73764329,105.38,105.31,38.56606583]
[1770052936132,2.88230987,105.37,105.31,35.68375596]
[1770052937434,11.43010987,105.37,105.31,35.68375596]
[1770052938337,8.5478,105.37,105.32,23.5535156]
[1770052939137,9.40233342,105.38,105.32,38.56516583]
[1770052939442,8.547,105.38,105.33,3.57774036]
[1770052942338,8.547,105.38,105.33,27.13125596]
[1770052942740,8.5477,105.37,105.32,23.5535156]
[1770052943238,8.5477,105.37,105.32,27.0499019]
[1770052943438,8.5477,105.37,105.33,23.5535156]
[1770052944237,8.5486,105.36,105.33,23.5535156]
[1770052944432,3.66576125,105.37,105.32,23.5535156]
[1770052944631,2.88230987,105.36,105.31,27.0499019]
[1770052945332,8.5486,105.36,105.31,27.0499019]
[1770052946041,3.6680383,105.34,105.27,6.37869617]
[1770052946336,3.6680383,105.34,105.28,3.4963863]
[1770052946636,3.6680383,105.33,105.26,6.37869617]
[1770052946941,2.88230987,105.32,105.26,3.4963863]
[1770052947139,8.5518,105.32,105.26,6.37869617]
[1770052947436,0.78572843,105.33,105.27,3.4963863]
[1770052947640,3.67704211,105.35,105.28,3.4963863]
[1770052947834,12.22714211,105.35,105.28,3.4963863]
[1770052948443,11.43080987,105.36,105.3,3.4963863]
[1770052948643,3.67704211,105.36,105.3,3.4963863]
[1770052948939,3.67704211,105.35,105.3,3.4963863]
[1770052949744,2.88230987,105.34,105.28,12.0513863]
[1770052950044,3.63749977,105.33,105.26,3.4963863]
[1770052950343,8.5501,105.34,105.28,3.4963863]
[1770052950538,9.3052899,105.34,105.28,3.4963863]
[1770052950735,12.18759977,105.34,105.28,3.4963863]
[1770052951947,11.43160987,105.35,105.29,3.4963863]
[1770052952142,3.63430017,105.36,105.3,3.4963863]
[1770052953645,2.88230987,105.35,105.3,3.4963863]
[1770052954539,12.18290017,105.36,105.3,12.0496863]
[1770052954742,3.64590009,105.38,105.32,3.4963863]
[1770052955341,8.5477,105.37,105.32,3.4963863]
[1770052956055,9.31055597,105.37,105.32,3.4963863]
[1770052956344,8.5485,105.36,105.3,32.14906468]
[1770052956550,11.43080987,105.36,105.3,14.93199617]
[1770052957250,8.5485,105.36,105.31,3.4963863]
[1770052958053,0.76285597,105.37,105.31,14.93119617]
[1770052958454,3.61220999,105.39,105.33,3.4963863]
[1770052958851,0.72990012,105.38,105.33,3.4963863]
[1770052959053,3.61220999,105.38,105.33,3.4963863]
[1770052959654,9.27720012,105.38,105.33,3.4963863]
[1770052960754,12.15950999,105.38,105.33,3.4963863]
[1770052961151,0.72990012,105.38,105.33,3.4963863]
[1770052961752,11.42840987,105.39,105.33,3.4963863]
[1770052962359,0.70117867,105.38,105.33,3.4963863]
[1770052962662,9.24837867,105.38,105.33,3.4963863]
[1770052963062,3.58348854,105.37,105.31,23.59576468]
[1770052963266,3.58348854,105.37,105.3,12.0496863]
[1770052963460,2.88230987,105.36,105.3,12.0496863]
[1770052963662,11.43090987,105.36,105.3,12.0496863]
[1770052965561,3.55595801,105.36,105.3,3.4963863]
[1770052965767,3.55595801,105.34,105.28,382.1163863]
[1770052966267,12.10635801,105.34,105.28,382.1163863]
[1770052967562,12.10635801,105.34,105.28,390.6710863]
[1770052968069,11.43340987,105.33,105.28,3.4963863]
[1770052968464,8.5511,105.33,105.28,3.4963863]
[1770052969269,12.10923301,105.34,105.28,3.4963863]
[1770052969463,3.55903301,105.34,105.28,12.0505863]
[1770052969766,12.10943301,105.34,105.28,12.0505863]
[1770052969967,12.10943301,105.34,105.28,3.4963863]
[1770052971059,8.551,105.33,105.28,3.4963863]
[1770052971563,2.88538487,105.35,105.29,3.6290579]
[1770052971765,0.6850126,105.36,105.29,3.6290579]
[1770052971766,0.6850126,105.36,105.3,3.6290579]
[1770052972265,0.6850126,105.36,105.3,6.51444277]
[1770052972456,0.6850126,105.36,105.3,12.1816579]
[1770052972661,3.57039747,105.34,105.28,3.6290579]
[1770052972861,132.9702,105.37,105.28,3.6290579]
[1770052972862,0.6850126,105.36,105.28,3.6290579]
[1770052973063,0.6850126,105.32,105.27,378.64]
[1770052973266,3.57039747,105.32,105.26,27.22482258]
[1770052973568,3.59489756,105.31,105.26,3.6290579]
[1770052973761,11.43898487,105.3,105.26,3.6290579]
[1770052974364,11.43898487,105.3,105.24,378.64]
[1770052974365,8.5552,105.28,105.24,378.64]
[1770052974566,3.59489756,105.28,105.22,3.6290579]
[1770052975869,8.555,105.29,105.23,3.6290579]
[1770052976063,8.555,105.29,105.24,3.6290579]
[1770052976259,12.19543769,105.3,105.24,3.6290579]
[1770052976868,12.19593769,105.29,105.24,3.6290579]
[1770052977268,11.44068487,105.28,105.22,3.6290579]
[1770052978170,8.5553,105.28,105.22,6.51444277]
[1770052978572,8.5553,105.28,105.23,3.6290579]
[1770052978867,3.64173769,105.29,105.23,3.6290579]
[1770052979069,2.88538487,105.3,105.24,3.6290579]
[1770052979673,12.11004988,105.29,105.22,6.51444277]
[1770052979875,12.11004988,105.29,105.23,3.6290579]
[1770052980274,12.11004988,105.29,105.21,323.8599]
[1770052980275,2.88538487,105.27,105.21,3.6290579]
[1770052980775,2.88538487,105.26,105.21,3.6290579]
[1770052981275,11.44208487,105.26,105.21,3.6290579]
[1770052981674,2.88538487,105.26,105.21,3.6290579]
[1770052981975,3.55584988,105.27,105.21,3.6290579]
[1770052982866,11.44088487,105.28,105.22,3.6290579]
[1770052983668,0.64054518,105.29,105.23,3.6290579]
[1770052984982,2.88538487,105.3,105.24,3.6290579]
[1770052985278,3.4958624,105.29,105.24,3.6290579]
[1770052985479,2.88538487,105.28,105.24,3.6290579]
[1770052985875,8.5551,105.28,105.22,12.1889579]
[1770052986079,11.44048487,105.28,105.22,12.1889579]
[1770052988078,8.5551,105.28,105.23,3.6290579]
[1770052988472,12.04187258,105.3,105.24,3.6290579]
[1770052988679,3.48777258,105.32,105.25,6.51444277]
[1770052988978,9.15508771,105.31,105.25,3.6290579]
[1770052989182,3.48777258,105.31,105.25,3.6290579]
[1770052989373,2.88538487,105.3,105.25,3.6290579]
[1770052989573,2.88538487,105.29,105.23,382.4690579]
[1770052989773,3.4839855,105.3,105.24,3.6290579]
[1770052989979,0.59860063,105.3,105.25,3.6290579]
[1770052990283,9.15200063,105.3,105.25,3.6290579]
[1770052990473,12.0373855,105.3,105.25,3.6290579]
[1770052990675,3.4839855,105.32,105.26,3.6290579]
[1770052991180,8.551,105.33,105.27,6.51444277]
[1770052991677,9.05466769,105.36,105.3,6.51444277]
[1770052992179,8.5473,105.38,105.32,6.51444277]
[1770052992476,0.50596769,105.39,105.32,6.51444277]
[1770052992677,0.50596769,105.39,105.33,2.88538487]
[1770052992879,9.05216769,105.39,105.33,2.88538487]
[1770052993473,9.05216769,105.39,105.34,2.88538487]
[1770052993979,9.05216769,105.39,105.33,2.88538487]
[1770052994178,9.05216769,105.39,105.34,2.88538487]
[1770052994379,9.05216769,105.39,105.32,12.1806579]
[1770052994980,9.05216769,105.39,105.33,3.6290579]
[1770053001780,132.9151,105.41,105.34,3.54797922]
[1770053001781,8.96628659,105.41,105.34,3.54797922]
[1770053002472,8.5453,105.4,105.34,12.09787922]
[1770053003079,8.5453,105.4,105.34,3.54797922]
[1770053003977,8.5464,105.39,105.34,3.54797922]
[1770053004178,8.92572093,105.39,105.34,3.54797922]
[1770053004986,0.37932093,105.41,105.34,3.54797922]
[1770053005682,8.92382093,105.41,105.35,3.57165432]
[1770053007685,8.5453,105.4,105.35,3.57165432]
[1770053009689,8.92382093,105.41,105.35,3.57165432]
[1770053009889,0.33790151,105.4,105.34,8.5494]